Workbook

Sheet Σύνοψη προϋπολογισμού YTD
A2: Πραγματικός προϋπολογισμός 2005 έναντι προϋπολογισμού YTD
A4: Κώδικας Γ/Κ | B4: Τίτλος λογαριασμού | C4: Πραγματικά | D4: Προϋπολογισμός | E4: Υπόλοιπο $ | F4: Υπόλοιπο %
A6: 1000 | B6: Διαφήμιση | C6: ='Σύνοψη μηνιαίων εξόδων'!O6 -> 9,009.00 € | D6: 100,000.00 € | E6: =SUM(+D6-C6) -> 90,991.00 € | F6: =SUM(E6/D6) -> 90.99%
A8: 2000 | B8: Εξοπλισμός γραφείου | C8: ='Σύνοψη μηνιαίων εξόδων'!O8 -> 0 | D8: 100,000.00 € | E8: =SUM(+D8-C8) -> 100,000.00 € | F8: =SUM(E8/D8) -> 100.00%
A10: 3000 | B10: Εκτυπωτές | C10: ='Σύνοψη μηνιαίων εξόδων'!O10 -> 0 | D10: 100,000.00 € | E10: =SUM(+D10-C10) -> 100,000.00 € | F10: =SUM(E10/D10) -> 100.00%
A12: 4000 | B12: Κόστος διακομιστή | C12: ='Σύνοψη μηνιαίων εξόδων'!O12 -> 0 | D12: 100,000.00 € | E12: =SUM(+D12-C12) -> 100,000.00 € | F12: =SUM(E12/D12) -> 100.00%
A14: 5000 | B14: Αναλώσιμα | C14: ='Σύνοψη μηνιαίων εξόδων'!O14 -> 0 | D14: 50,000.00 € | E14: =SUM(+D14-C14) -> 50,000.00 € | F14: =SUM(E14/D14) -> 100.00%
A16: 6000 | B16: Δαπάνες πελάτη | C16: ='Σύνοψη μηνιαίων εξόδων'!O16 -> 0 | D16: 25,000.00 € | E16: =SUM(+D16-C16) -> 25,000.00 € | F16: =SUM(E16/D16) -> 100.00%
A18: 7000 | B18: Υπολογιστές | C18: ='Σύνοψη μηνιαίων εξόδων'!O18 -> 30,000.00 € | D18: 75,000.00 € | E18: =SUM(+D18-C18) -> 45,000.00 € | F18: =SUM(E18/D18) -> 60.00%
A20: 8000 | B20: Πρόγραμμα νοσηλείας | C20: ='Σύνοψη μηνιαίων εξόδων'!O20 -> 0 | D20: 65,000.00 € | E20: =SUM(+D20-C20) -> 65,000.00 € | F20: =SUM(E20/D20) -> 100.00%
A22: 9000 | B22: Κόστος κατασκευής | C22: ='Σύνοψη μηνιαίων εξόδων'!O22 -> 0 | D22: 125,000.00 € | E22: =SUM(+D22-C22) -> 125,000.00 € | F22: =SUM(E22/D22) -> 100.00%
A24: 10000 | B24: Μάρκετινγκ | C24: ='Σύνοψη μηνιαίων εξόδων'!O24 -> 0 | D24: 100,000.00 € | E24: =SUM(+D24-C24) -> 100,000.00 € | F24: =SUM(E24/D24) -> 100.00%
A26: 11000 | B26: Δωρεές | C26: ='Σύνοψη μηνιαίων εξόδων'!O26 -> 30,000.00 € | D26: 250,000.00 € | E26: =SUM(+D26-C26) -> 220,000.00 € | F26: =SUM(E26/D26) -> 88.00%
A28: 12000 | B28: Χορηγίες | C28: ='Σύνοψη μηνιαίων εξόδων'!O28 -> 12,000.00 € | D28: 50,000.00 € | E28: =SUM(+D28-C28) -> 38,000.00 € | F28: =SUM(E28/D28) -> 76.00%
B30: ΣΥΝΟΛΟ | C30: =SUM(C6:C28) -> 81,009.00 € | D30: =SUM(D6:D28) -> 1,140,000.00 € | E30: =SUM(E6:E28) -> 1,058,991.00 € | F30: =SUM(E30/D30) -> 92.89%

Sheet Σύνοψη μηνιαίων εξόδων
A2: Μηνιαία έξοδα 2005
A4: Κώδικας Γ/Κ | B4: Τίτλος λογαριασμού | C4: 2005-01-01 | D4: 2005-02-01 | E4: 2005-03-01 | F4: 2005-04-01 | G4: 2005-05-01 | H4: 2005-06-01 | I4: 2005-07-01 | J4: 2005-08-01 | K4: 2005-09-01 | L4: 2005-10-01 | M4: 2005-11-01 | N4: 2005-12-01 | O4: 2005
A6: 1000 | B6: Διαφήμιση | C6: =SUMIF('Δωρεές & Χορηγίες'!$L:$L,"="&($A6&TEXT(C$4,"μμμ-εε")),'Δωρεές & Χορηγίες'!$D:$D)+SUMIF('Αναλυτικά έξοδα'!$J:$J,"="&($A6&TEXT(C$4,"μμμ-εε")),'Αναλυτικά έξοδα'!$E:$E) -> 750.75 € | D6: =SUMIF('Δωρεές & Χορηγίες'!$L:$L,"="&($A6&TEXT(D$4,"μμμ-εε")),'Δωρεές & Χορηγίες'!$D:$D)+SUMIF('Αναλυτικά έξοδα'!$J:$J,"="&($A6&TEXT(D$4,"μμμ-εε")),'Αναλυτικά έξοδα'!$E:$E) -> 750.75 € | E6: =SUMIF('Δωρεές & Χορηγίες'!$L:$L,"="&($A6&TEXT(E$4,"μμμ-εε")),'Δωρεές & Χορηγίες'!$D:$D)+SUMIF('Αναλυτικά έξοδα'!$J:$J,"="&($A6&TEXT(E$4,"μμμ-εε")),'Αναλυτικά έξοδα'!$E:$E) -> 750.75 € | F6: =SUMIF('Δωρεές & Χορηγίες'!$L:$L,"="&($A6&TEXT(F$4,"μμμ-εε")),'Δωρεές & Χορηγίες'!$D:$D)+SUMIF('Αναλυτικά έξοδα'!$J:$J,"="&($A6&TEXT(F$4,"μμμ-εε")),'Αναλυτικά έξοδα'!$E:$E) -> 750.75 € | G6: =SUMIF('Δωρεές & Χορηγίες'!$L:$L,"="&($A6&TEXT(G$4,"μμμ-εε")),'Δωρεές & Χορηγίες'!$D:$D)+SUMIF('Αναλυτικά έξοδα'!$J:$J,"="&($A6&TEXT(G$4,"μμμ-εε")),'Αναλυτικά έξοδα'!$E:$E) -> 750.75 € | H6: =SUMIF('Δωρεές & Χορηγίες'!$L:$L,"="&($A6&TEXT(H$4,"μμμ-εε")),'Δωρεές & Χορηγίες'!$D:$D)+SUMIF('Αναλυτικά έξοδα'!$J:$J,"="&($A6&TEXT(H$4,"μμμ-εε")),'Αναλυτικά έξοδα'!$E:$E) -> 750.75 € | I6: =SUMIF('Δωρεές & Χορηγίες'!$L:$L,"="&($A6&TEXT(I$4,"μμμ-εε")),'Δωρεές & Χορηγίες'!$D:$D)+SUMIF('Αναλυτικά έξοδα'!$J:$J,"="&($A6&TEXT(I$4,"μμμ-εε")),'Αναλυτικά έξοδα'!$E:$E) -> 750.75 € | J6: =SUMIF('Δωρεές & Χορηγίες'!$L:$L,"="&($A6&TEXT(J$4,"μμμ-εε")),'Δωρεές & Χορηγίες'!$D:$D)+SUMIF('Αναλυτικά έξοδα'!$J:$J,"="&($A6&TEXT(J$4,"μμμ-εε")),'Αναλυτικά έξοδα'!$E:$E) -> 750.75 € | K6: =SUMIF('Δωρεές & Χορηγίες'!$L:$L,"="&($A6&TEXT(K$4,"μμμ-εε")),'Δωρεές & Χορηγίες'!$D:$D)+SUMIF('Αναλυτικά έξοδα'!$J:$J,"="&($A6&TEXT(K$4,"μμμ-εε")),'Αναλυτικά έξοδα'!$E:$E) -> 750.75 € | L6: =SUMIF('Δωρεές & Χορηγίες'!$L:$L,"="&($A6&TEXT(L$4,"μμμ-εε")),'Δωρεές & Χορηγίες'!$D:$D)+SUMIF('Αναλυτικά έξοδα'!$J:$J,"="&($A6&TEXT(L$4,"μμμ-εε")),'Αναλυτικά έξοδα'!$E:$E) -> 750.75 € | M6: =SUMIF('Δωρεές & Χορηγίες'!$L:$L,"="&($A6&TEXT(M$4,"μμμ-εε")),'Δωρεές & Χορηγίες'!$D:$D)+SUMIF('Αναλυτικά έξοδα'!$J:$J,"="&($A6&TEXT(M$4,"μμμ-εε")),'Αναλυτικά έξοδα'!$E:$E) -> 750.75 € | N6: =SUMIF('Δωρεές & Χορηγίες'!$L:$L,"="&($A6&TEXT(N$4,"μμμ-εε")),'Δωρεές & Χορηγίες'!$D:$D)+SUMIF('Αναλυτικά έξοδα'!$J:$J,"="&($A6&TEXT(N$4,"μμμ-εε")),'Αναλυτικά έξοδα'!$E:$E) -> 750.75 € | O6: =SUM(C6:N6) -> 9,009.00 €
A8: 2000 | B8: Εξοπλισμός γραφείου | C8: =SUMIF('Δωρεές & Χορηγίες'!$L:$L,"="&($A8&TEXT(C$4,"μμμ-εε")),'Δωρεές & Χορηγίες'!$D:$D)+SUMIF('Αναλυτικά έξοδα'!$J:$J,"="&($A8&TEXT(C$4,"μμμ-εε")),'Αναλυτικά έξοδα'!$E:$E) -> 0 | D8: =SUMIF('Δωρεές & Χορηγίες'!$L:$L,"="&($A8&TEXT(D$4,"μμμ-εε")),'Δωρεές & Χορηγίες'!$D:$D)+SUMIF('Αναλυτικά έξοδα'!$J:$J,"="&($A8&TEXT(D$4,"μμμ-εε")),'Αναλυτικά έξοδα'!$E:$E) -> 0 | E8: =SUMIF('Δωρεές & Χορηγίες'!$L:$L,"="&($A8&TEXT(E$4,"μμμ-εε")),'Δωρεές & Χορηγίες'!$D:$D)+SUMIF('Αναλυτικά έξοδα'!$J:$J,"="&($A8&TEXT(E$4,"μμμ-εε")),'Αναλυτικά έξοδα'!$E:$E) -> 0 | F8: =SUMIF('Δωρεές & Χορηγίες'!$L:$L,"="&($A8&TEXT(F$4,"μμμ-εε")),'Δωρεές & Χορηγίες'!$D:$D)+SUMIF('Αναλυτικά έξοδα'!$J:$J,"="&($A8&TEXT(F$4,"μμμ-εε")),'Αναλυτικά έξοδα'!$E:$E) -> 0 | G8: =SUMIF('Δωρεές & Χορηγίες'!$L:$L,"="&($A8&TEXT(G$4,"μμμ-εε")),'Δωρεές & Χορηγίες'!$D:$D)+SUMIF('Αναλυτικά έξοδα'!$J:$J,"="&($A8&TEXT(G$4,"μμμ-εε")),'Αναλυτικά έξοδα'!$E:$E) -> 0 | H8: =SUMIF('Δωρεές & Χορηγίες'!$L:$L,"="&($A8&TEXT(H$4,"μμμ-εε")),'Δωρεές & Χορηγίες'!$D:$D)+SUMIF('Αναλυτικά έξοδα'!$J:$J,"="&($A8&TEXT(H$4,"μμμ-εε")),'Αναλυτικά έξοδα'!$E:$E) -> 0 | I8: =SUMIF('Δωρεές & Χορηγίες'!$L:$L,"="&($A8&TEXT(I$4,"μμμ-εε")),'Δωρεές & Χορηγίες'!$D:$D)+SUMIF('Αναλυτικά έξοδα'!$J:$J,"="&($A8&TEXT(I$4,"μμμ-εε")),'Αναλυτικά έξοδα'!$E:$E) -> 0 | J8: =SUMIF('Δωρεές & Χορηγίες'!$L:$L,"="&($A8&TEXT(J$4,"μμμ-εε")),'Δωρεές & Χορηγίες'!$D:$D)+SUMIF('Αναλυτικά έξοδα'!$J:$J,"="&($A8&TEXT(J$4,"μμμ-εε")),'Αναλυτικά έξοδα'!$E:$E) -> 0 | K8: =SUMIF('Δωρεές & Χορηγίες'!$L:$L,"="&($A8&TEXT(K$4,"μμμ-εε")),'Δωρεές & Χορηγίες'!$D:$D)+SUMIF('Αναλυτικά έξοδα'!$J:$J,"="&($A8&TEXT(K$4,"μμμ-εε")),'Αναλυτικά έξοδα'!$E:$E) -> 0 | L8: =SUMIF('Δωρεές & Χορηγίες'!$L:$L,"="&($A8&TEXT(L$4,"μμμ-εε")),'Δωρεές & Χορηγίες'!$D:$D)+SUMIF('Αναλυτικά έξοδα'!$J:$J,"="&($A8&TEXT(L$4,"μμμ-εε")),'Αναλυτικά έξοδα'!$E:$E) -> 0 | M8: =SUMIF('Δωρεές & Χορηγίες'!$L:$L,"="&($A8&TEXT(M$4,"μμμ-εε")),'Δωρεές & Χορηγίες'!$D:$D)+SUMIF('Αναλυτικά έξοδα'!$J:$J,"="&($A8&TEXT(M$4,"μμμ-εε")),'Αναλυτικά έξοδα'!$E:$E) -> 0 | N8: =SUMIF('Δωρεές & Χορηγίες'!$L:$L,"="&($A8&TEXT(N$4,"μμμ-εε")),'Δωρεές & Χορηγίες'!$D:$D)+SUMIF('Αναλυτικά έξοδα'!$J:$J,"="&($A8&TEXT(N$4,"μμμ-εε")),'Αναλυτικά έξοδα'!$E:$E) -> 0 | O8: =SUM(C8:N8) -> 0
A10: 3000 | B10: Εκτυπωτές | C10: =SUMIF('Δωρεές & Χορηγίες'!$L:$L,"="&($A10&TEXT(C$4,"μμμ-εε")),'Δωρεές & Χορηγίες'!$D:$D)+SUMIF('Αναλυτικά έξοδα'!$J:$J,"="&($A10&TEXT(C$4,"μμμ-εε")),'Αναλυτικά έξοδα'!$E:$E) -> 0 | D10: =SUMIF('Δωρεές & Χορηγίες'!$L:$L,"="&($A10&TEXT(D$4,"μμμ-εε")),'Δωρεές & Χορηγίες'!$D:$D)+SUMIF('Αναλυτικά έξοδα'!$J:$J,"="&($A10&TEXT(D$4,"μμμ-εε")),'Αναλυτικά έξοδα'!$E:$E) -> 0 | E10: =SUMIF('Δωρεές & Χορηγίες'!$L:$L,"="&($A10&TEXT(E$4,"μμμ-εε")),'Δωρεές & Χορηγίες'!$D:$D)+SUMIF('Αναλυτικά έξοδα'!$J:$J,"="&($A10&TEXT(E$4,"μμμ-εε")),'Αναλυτικά έξοδα'!$E:$E) -> 0 | F10: =SUMIF('Δωρεές & Χορηγίες'!$L:$L,"="&($A10&TEXT(F$4,"μμμ-εε")),'Δωρεές & Χορηγίες'!$D:$D)+SUMIF('Αναλυτικά έξοδα'!$J:$J,"="&($A10&TEXT(F$4,"μμμ-εε")),'Αναλυτικά έξοδα'!$E:$E) -> 0 | G10: =SUMIF('Δωρεές & Χορηγίες'!$L:$L,"="&($A10&TEXT(G$4,"μμμ-εε")),'Δωρεές & Χορηγίες'!$D:$D)+SUMIF('Αναλυτικά έξοδα'!$J:$J,"="&($A10&TEXT(G$4,"μμμ-εε")),'Αναλυτικά έξοδα'!$E:$E) -> 0 | H10: =SUMIF('Δωρεές & Χορηγίες'!$L:$L,"="&($A10&TEXT(H$4,"μμμ-εε")),'Δωρεές & Χορηγίες'!$D:$D)+SUMIF('Αναλυτικά έξοδα'!$J:$J,"="&($A10&TEXT(H$4,"μμμ-εε")),'Αναλυτικά έξοδα'!$E:$E) -> 0 | I10: =SUMIF('Δωρεές & Χορηγίες'!$L:$L,"="&($A10&TEXT(I$4,"μμμ-εε")),'Δωρεές & Χορηγίες'!$D:$D)+SUMIF('Αναλυτικά έξοδα'!$J:$J,"="&($A10&TEXT(I$4,"μμμ-εε")),'Αναλυτικά έξοδα'!$E:$E) -> 0 | J10: =SUMIF('Δωρεές & Χορηγίες'!$L:$L,"="&($A10&TEXT(J$4,"μμμ-εε")),'Δωρεές & Χορηγίες'!$D:$D)+SUMIF('Αναλυτικά έξοδα'!$J:$J,"="&($A10&TEXT(J$4,"μμμ-εε")),'Αναλυτικά έξοδα'!$E:$E) -> 0 | K10: =SUMIF('Δωρεές & Χορηγίες'!$L:$L,"="&($A10&TEXT(K$4,"μμμ-εε")),'Δωρεές & Χορηγίες'!$D:$D)+SUMIF('Αναλυτικά έξοδα'!$J:$J,"="&($A10&TEXT(K$4,"μμμ-εε")),'Αναλυτικά έξοδα'!$E:$E) -> 0 | L10: =SUMIF('Δωρεές & Χορηγίες'!$L:$L,"="&($A10&TEXT(L$4,"μμμ-εε")),'Δωρεές & Χορηγίες'!$D:$D)+SUMIF('Αναλυτικά έξοδα'!$J:$J,"="&($A10&TEXT(L$4,"μμμ-εε")),'Αναλυτικά έξοδα'!$E:$E) -> 0 | M10: =SUMIF('Δωρεές & Χορηγίες'!$L:$L,"="&($A10&TEXT(M$4,"μμμ-εε")),'Δωρεές & Χορηγίες'!$D:$D)+SUMIF('Αναλυτικά έξοδα'!$J:$J,"="&($A10&TEXT(M$4,"μμμ-εε")),'Αναλυτικά έξοδα'!$E:$E) -> 0 | N10: =SUMIF('Δωρεές & Χορηγίες'!$L:$L,"="&($A10&TEXT(N$4,"μμμ-εε")),'Δωρεές & Χορηγίες'!$D:$D)+SUMIF('Αναλυτικά έξοδα'!$J:$J,"="&($A10&TEXT(N$4,"μμμ-εε")),'Αναλυτικά έξοδα'!$E:$E) -> 0 | O10: =SUM(C10:N10) -> 0
A12: 4000 | B12: Κόστος διακομιστή | C12: =SUMIF('Δωρεές & Χορηγίες'!$L:$L,"="&($A12&TEXT(C$4,"μμμ-εε")),'Δωρεές & Χορηγίες'!$D:$D)+SUMIF('Αναλυτικά έξοδα'!$J:$J,"="&($A12&TEXT(C$4,"μμμ-εε")),'Αναλυτικά έξοδα'!$E:$E) -> 0 | D12: =SUMIF('Δωρεές & Χορηγίες'!$L:$L,"="&($A12&TEXT(D$4,"μμμ-εε")),'Δωρεές & Χορηγίες'!$D:$D)+SUMIF('Αναλυτικά έξοδα'!$J:$J,"="&($A12&TEXT(D$4,"μμμ-εε")),'Αναλυτικά έξοδα'!$E:$E) -> 0 | E12: =SUMIF('Δωρεές & Χορηγίες'!$L:$L,"="&($A12&TEXT(E$4,"μμμ-εε")),'Δωρεές & Χορηγίες'!$D:$D)+SUMIF('Αναλυτικά έξοδα'!$J:$J,"="&($A12&TEXT(E$4,"μμμ-εε")),'Αναλυτικά έξοδα'!$E:$E) -> 0 | F12: =SUMIF('Δωρεές & Χορηγίες'!$L:$L,"="&($A12&TEXT(F$4,"μμμ-εε")),'Δωρεές & Χορηγίες'!$D:$D)+SUMIF('Αναλυτικά έξοδα'!$J:$J,"="&($A12&TEXT(F$4,"μμμ-εε")),'Αναλυτικά έξοδα'!$E:$E) -> 0 | G12: =SUMIF('Δωρεές & Χορηγίες'!$L:$L,"="&($A12&TEXT(G$4,"μμμ-εε")),'Δωρεές & Χορηγίες'!$D:$D)+SUMIF('Αναλυτικά έξοδα'!$J:$J,"="&($A12&TEXT(G$4,"μμμ-εε")),'Αναλυτικά έξοδα'!$E:$E) -> 0 | H12: =SUMIF('Δωρεές & Χορηγίες'!$L:$L,"="&($A12&TEXT(H$4,"μμμ-εε")),'Δωρεές & Χορηγίες'!$D:$D)+SUMIF('Αναλυτικά έξοδα'!$J:$J,"="&($A12&TEXT(H$4,"μμμ-εε")),'Αναλυτικά έξοδα'!$E:$E) -> 0 | I12: =SUMIF('Δωρεές & Χορηγίες'!$L:$L,"="&($A12&TEXT(I$4,"μμμ-εε")),'Δωρεές & Χορηγίες'!$D:$D)+SUMIF('Αναλυτικά έξοδα'!$J:$J,"="&($A12&TEXT(I$4,"μμμ-εε")),'Αναλυτικά έξοδα'!$E:$E) -> 0 | J12: =SUMIF('Δωρεές & Χορηγίες'!$L:$L,"="&($A12&TEXT(J$4,"μμμ-εε")),'Δωρεές & Χορηγίες'!$D:$D)+SUMIF('Αναλυτικά έξοδα'!$J:$J,"="&($A12&TEXT(J$4,"μμμ-εε")),'Αναλυτικά έξοδα'!$E:$E) -> 0 | K12: =SUMIF('Δωρεές & Χορηγίες'!$L:$L,"="&($A12&TEXT(K$4,"μμμ-εε")),'Δωρεές & Χορηγίες'!$D:$D)+SUMIF('Αναλυτικά έξοδα'!$J:$J,"="&($A12&TEXT(K$4,"μμμ-εε")),'Αναλυτικά έξοδα'!$E:$E) -> 0 | L12: =SUMIF('Δωρεές & Χορηγίες'!$L:$L,"="&($A12&TEXT(L$4,"μμμ-εε")),'Δωρεές & Χορηγίες'!$D:$D)+SUMIF('Αναλυτικά έξοδα'!$J:$J,"="&($A12&TEXT(L$4,"μμμ-εε")),'Αναλυτικά έξοδα'!$E:$E) -> 0 | M12: =SUMIF('Δωρεές & Χορηγίες'!$L:$L,"="&($A12&TEXT(M$4,"μμμ-εε")),'Δωρεές & Χορηγίες'!$D:$D)+SUMIF('Αναλυτικά έξοδα'!$J:$J,"="&($A12&TEXT(M$4,"μμμ-εε")),'Αναλυτικά έξοδα'!$E:$E) -> 0 | N12: =SUMIF('Δωρεές & Χορηγίες'!$L:$L,"="&($A12&TEXT(N$4,"μμμ-εε")),'Δωρεές & Χορηγίες'!$D:$D)+SUMIF('Αναλυτικά έξοδα'!$J:$J,"="&($A12&TEXT(N$4,"μμμ-εε")),'Αναλυτικά έξοδα'!$E:$E) -> 0 | O12: =SUM(C12:N12) -> 0
A14: 5000 | B14: Αναλώσιμα | C14: =SUMIF('Δωρεές & Χορηγίες'!$L:$L,"="&($A14&TEXT(C$4,"μμμ-εε")),'Δωρεές & Χορηγίες'!$D:$D)+SUMIF('Αναλυτικά έξοδα'!$J:$J,"="&($A14&TEXT(C$4,"μμμ-εε")),'Αναλυτικά έξοδα'!$E:$E) -> 0 | D14: =SUMIF('Δωρεές & Χορηγίες'!$L:$L,"="&($A14&TEXT(D$4,"μμμ-εε")),'Δωρεές & Χορηγίες'!$D:$D)+SUMIF('Αναλυτικά έξοδα'!$J:$J,"="&($A14&TEXT(D$4,"μμμ-εε")),'Αναλυτικά έξοδα'!$E:$E) -> 0 | E14: =SUMIF('Δωρεές & Χορηγίες'!$L:$L,"="&($A14&TEXT(E$4,"μμμ-εε")),'Δωρεές & Χορηγίες'!$D:$D)+SUMIF('Αναλυτικά έξοδα'!$J:$J,"="&($A14&TEXT(E$4,"μμμ-εε")),'Αναλυτικά έξοδα'!$E:$E) -> 0 | F14: =SUMIF('Δωρεές & Χορηγίες'!$L:$L,"="&($A14&TEXT(F$4,"μμμ-εε")),'Δωρεές & Χορηγίες'!$D:$D)+SUMIF('Αναλυτικά έξοδα'!$J:$J,"="&($A14&TEXT(F$4,"μμμ-εε")),'Αναλυτικά έξοδα'!$E:$E) -> 0 | G14: =SUMIF('Δωρεές & Χορηγίες'!$L:$L,"="&($A14&TEXT(G$4,"μμμ-εε")),'Δωρεές & Χορηγίες'!$D:$D)+SUMIF('Αναλυτικά έξοδα'!$J:$J,"="&($A14&TEXT(G$4,"μμμ-εε")),'Αναλυτικά έξοδα'!$E:$E) -> 0 | H14: =SUMIF('Δωρεές & Χορηγίες'!$L:$L,"="&($A14&TEXT(H$4,"μμμ-εε")),'Δωρεές & Χορηγίες'!$D:$D)+SUMIF('Αναλυτικά έξοδα'!$J:$J,"="&($A14&TEXT(H$4,"μμμ-εε")),'Αναλυτικά έξοδα'!$E:$E) -> 0 | I14: =SUMIF('Δωρεές & Χορηγίες'!$L:$L,"="&($A14&TEXT(I$4,"μμμ-εε")),'Δωρεές & Χορηγίες'!$D:$D)+SUMIF('Αναλυτικά έξοδα'!$J:$J,"="&($A14&TEXT(I$4,"μμμ-εε")),'Αναλυτικά έξοδα'!$E:$E) -> 0 | J14: =SUMIF('Δωρεές & Χορηγίες'!$L:$L,"="&($A14&TEXT(J$4,"μμμ-εε")),'Δωρεές & Χορηγίες'!$D:$D)+SUMIF('Αναλυτικά έξοδα'!$J:$J,"="&($A14&TEXT(J$4,"μμμ-εε")),'Αναλυτικά έξοδα'!$E:$E) -> 0 | K14: =SUMIF('Δωρεές & Χορηγίες'!$L:$L,"="&($A14&TEXT(K$4,"μμμ-εε")),'Δωρεές & Χορηγίες'!$D:$D)+SUMIF('Αναλυτικά έξοδα'!$J:$J,"="&($A14&TEXT(K$4,"μμμ-εε")),'Αναλυτικά έξοδα'!$E:$E) -> 0 | L14: =SUMIF('Δωρεές & Χορηγίες'!$L:$L,"="&($A14&TEXT(L$4,"μμμ-εε")),'Δωρεές & Χορηγίες'!$D:$D)+SUMIF('Αναλυτικά έξοδα'!$J:$J,"="&($A14&TEXT(L$4,"μμμ-εε")),'Αναλυτικά έξοδα'!$E:$E) -> 0 | M14: =SUMIF('Δωρεές & Χορηγίες'!$L:$L,"="&($A14&TEXT(M$4,"μμμ-εε")),'Δωρεές & Χορηγίες'!$D:$D)+SUMIF('Αναλυτικά έξοδα'!$J:$J,"="&($A14&TEXT(M$4,"μμμ-εε")),'Αναλυτικά έξοδα'!$E:$E) -> 0 | N14: =SUMIF('Δωρεές & Χορηγίες'!$L:$L,"="&($A14&TEXT(N$4,"μμμ-εε")),'Δωρεές & Χορηγίες'!$D:$D)+SUMIF('Αναλυτικά έξοδα'!$J:$J,"="&($A14&TEXT(N$4,"μμμ-εε")),'Αναλυτικά έξοδα'!$E:$E) -> 0 | O14: =SUM(C14:N14) -> 0
A16: 6000 | B16: Δαπάνες πελάτη | C16: =SUMIF('Δωρεές & Χορηγίες'!$L:$L,"="&($A16&TEXT(C$4,"μμμ-εε")),'Δωρεές & Χορηγίες'!$D:$D)+SUMIF('Αναλυτικά έξοδα'!$J:$J,"="&($A16&TEXT(C$4,"μμμ-εε")),'Αναλυτικά έξοδα'!$E:$E) -> 0 | D16: =SUMIF('Δωρεές & Χορηγίες'!$L:$L,"="&($A16&TEXT(D$4,"μμμ-εε")),'Δωρεές & Χορηγίες'!$D:$D)+SUMIF('Αναλυτικά έξοδα'!$J:$J,"="&($A16&TEXT(D$4,"μμμ-εε")),'Αναλυτικά έξοδα'!$E:$E) -> 0 | E16: =SUMIF('Δωρεές & Χορηγίες'!$L:$L,"="&($A16&TEXT(E$4,"μμμ-εε")),'Δωρεές & Χορηγίες'!$D:$D)+SUMIF('Αναλυτικά έξοδα'!$J:$J,"="&($A16&TEXT(E$4,"μμμ-εε")),'Αναλυτικά έξοδα'!$E:$E) -> 0 | F16: =SUMIF('Δωρεές & Χορηγίες'!$L:$L,"="&($A16&TEXT(F$4,"μμμ-εε")),'Δωρεές & Χορηγίες'!$D:$D)+SUMIF('Αναλυτικά έξοδα'!$J:$J,"="&($A16&TEXT(F$4,"μμμ-εε")),'Αναλυτικά έξοδα'!$E:$E) -> 0 | G16: =SUMIF('Δωρεές & Χορηγίες'!$L:$L,"="&($A16&TEXT(G$4,"μμμ-εε")),'Δωρεές & Χορηγίες'!$D:$D)+SUMIF('Αναλυτικά έξοδα'!$J:$J,"="&($A16&TEXT(G$4,"μμμ-εε")),'Αναλυτικά έξοδα'!$E:$E) -> 0 | H16: =SUMIF('Δωρεές & Χορηγίες'!$L:$L,"="&($A16&TEXT(H$4,"μμμ-εε")),'Δωρεές & Χορηγίες'!$D:$D)+SUMIF('Αναλυτικά έξοδα'!$J:$J,"="&($A16&TEXT(H$4,"μμμ-εε")),'Αναλυτικά έξοδα'!$E:$E) -> 0 | I16: =SUMIF('Δωρεές & Χορηγίες'!$L:$L,"="&($A16&TEXT(I$4,"μμμ-εε")),'Δωρεές & Χορηγίες'!$D:$D)+SUMIF('Αναλυτικά έξοδα'!$J:$J,"="&($A16&TEXT(I$4,"μμμ-εε")),'Αναλυτικά έξοδα'!$E:$E) -> 0 | J16: =SUMIF('Δωρεές & Χορηγίες'!$L:$L,"="&($A16&TEXT(J$4,"μμμ-εε")),'Δωρεές & Χορηγίες'!$D:$D)+SUMIF('Αναλυτικά έξοδα'!$J:$J,"="&($A16&TEXT(J$4,"μμμ-εε")),'Αναλυτικά έξοδα'!$E:$E) -> 0 | K16: =SUMIF('Δωρεές & Χορηγίες'!$L:$L,"="&($A16&TEXT(K$4,"μμμ-εε")),'Δωρεές & Χορηγίες'!$D:$D)+SUMIF('Αναλυτικά έξοδα'!$J:$J,"="&($A16&TEXT(K$4,"μμμ-εε")),'Αναλυτικά έξοδα'!$E:$E) -> 0 | L16: =SUMIF('Δωρεές & Χορηγίες'!$L:$L,"="&($A16&TEXT(L$4,"μμμ-εε")),'Δωρεές & Χορηγίες'!$D:$D)+SUMIF('Αναλυτικά έξοδα'!$J:$J,"="&($A16&TEXT(L$4,"μμμ-εε")),'Αναλυτικά έξοδα'!$E:$E) -> 0 | M16: =SUMIF('Δωρεές & Χορηγίες'!$L:$L,"="&($A16&TEXT(M$4,"μμμ-εε")),'Δωρεές & Χορηγίες'!$D:$D)+SUMIF('Αναλυτικά έξοδα'!$J:$J,"="&($A16&TEXT(M$4,"μμμ-εε")),'Αναλυτικά έξοδα'!$E:$E) -> 0 | N16: =SUMIF('Δωρεές & Χορηγίες'!$L:$L,"="&($A16&TEXT(N$4,"μμμ-εε")),'Δωρεές & Χορηγίες'!$D:$D)+SUMIF('Αναλυτικά έξοδα'!$J:$J,"="&($A16&TEXT(N$4,"μμμ-εε")),'Αναλυτικά έξοδα'!$E:$E) -> 0 | O16: =SUM(C16:N16) -> 0
A18: 7000 | B18: Υπολογιστές | C18: =SUMIF('Δωρεές & Χορηγίες'!$L:$L,"="&($A18&TEXT(C$4,"μμμ-εε")),'Δωρεές & Χορηγίες'!$D:$D)+SUMIF('Αναλυτικά έξοδα'!$J:$J,"="&($A18&TEXT(C$4,"μμμ-εε")),'Αναλυτικά έξοδα'!$E:$E) -> 2,500.00 € | D18: =SUMIF('Δωρεές & Χορηγίες'!$L:$L,"="&($A18&TEXT(D$4,"μμμ-εε")),'Δωρεές & Χορηγίες'!$D:$D)+SUMIF('Αναλυτικά έξοδα'!$J:$J,"="&($A18&TEXT(D$4,"μμμ-εε")),'Αναλυτικά έξοδα'!$E:$E) -> 2,500.00 € | E18: =SUMIF('Δωρεές & Χορηγίες'!$L:$L,"="&($A18&TEXT(E$4,"μμμ-εε")),'Δωρεές & Χορηγίες'!$D:$D)+SUMIF('Αναλυτικά έξοδα'!$J:$J,"="&($A18&TEXT(E$4,"μμμ-εε")),'Αναλυτικά έξοδα'!$E:$E) -> 2,500.00 € | F18: =SUMIF('Δωρεές & Χορηγίες'!$L:$L,"="&($A18&TEXT(F$4,"μμμ-εε")),'Δωρεές & Χορηγίες'!$D:$D)+SUMIF('Αναλυτικά έξοδα'!$J:$J,"="&($A18&TEXT(F$4,"μμμ-εε")),'Αναλυτικά έξοδα'!$E:$E) -> 2,500.00 € | G18: =SUMIF('Δωρεές & Χορηγίες'!$L:$L,"="&($A18&TEXT(G$4,"μμμ-εε")),'Δωρεές & Χορηγίες'!$D:$D)+SUMIF('Αναλυτικά έξοδα'!$J:$J,"="&($A18&TEXT(G$4,"μμμ-εε")),'Αναλυτικά έξοδα'!$E:$E) -> 2,500.00 € | H18: =SUMIF('Δωρεές & Χορηγίες'!$L:$L,"="&($A18&TEXT(H$4,"μμμ-εε")),'Δωρεές & Χορηγίες'!$D:$D)+SUMIF('Αναλυτικά έξοδα'!$J:$J,"="&($A18&TEXT(H$4,"μμμ-εε")),'Αναλυτικά έξοδα'!$E:$E) -> 2,500.00 € | I18: =SUMIF('Δωρεές & Χορηγίες'!$L:$L,"="&($A18&TEXT(I$4,"μμμ-εε")),'Δωρεές & Χορηγίες'!$D:$D)+SUMIF('Αναλυτικά έξοδα'!$J:$J,"="&($A18&TEXT(I$4,"μμμ-εε")),'Αναλυτικά έξοδα'!$E:$E) -> 2,500.00 € | J18: =SUMIF('Δωρεές & Χορηγίες'!$L:$L,"="&($A18&TEXT(J$4,"μμμ-εε")),'Δωρεές & Χορηγίες'!$D:$D)+SUMIF('Αναλυτικά έξοδα'!$J:$J,"="&($A18&TEXT(J$4,"μμμ-εε")),'Αναλυτικά έξοδα'!$E:$E) -> 2,500.00 € | K18: =SUMIF('Δωρεές & Χορηγίες'!$L:$L,"="&($A18&TEXT(K$4,"μμμ-εε")),'Δωρεές & Χορηγίες'!$D:$D)+SUMIF('Αναλυτικά έξοδα'!$J:$J,"="&($A18&TEXT(K$4,"μμμ-εε")),'Αναλυτικά έξοδα'!$E:$E) -> 2,500.00 € | L18: =SUMIF('Δωρεές & Χορηγίες'!$L:$L,"="&($A18&TEXT(L$4,"μμμ-εε")),'Δωρεές & Χορηγίες'!$D:$D)+SUMIF('Αναλυτικά έξοδα'!$J:$J,"="&($A18&TEXT(L$4,"μμμ-εε")),'Αναλυτικά έξοδα'!$E:$E) -> 2,500.00 € | M18: =SUMIF('Δωρεές & Χορηγίες'!$L:$L,"="&($A18&TEXT(M$4,"μμμ-εε")),'Δωρεές & Χορηγίες'!$D:$D)+SUMIF('Αναλυτικά έξοδα'!$J:$J,"="&($A18&TEXT(M$4,"μμμ-εε")),'Αναλυτικά έξοδα'!$E:$E) -> 2,500.00 € | N18: =SUMIF('Δωρεές & Χορηγίες'!$L:$L,"="&($A18&TEXT(N$4,"μμμ-εε")),'Δωρεές & Χορηγίες'!$D:$D)+SUMIF('Αναλυτικά έξοδα'!$J:$J,"="&($A18&TEXT(N$4,"μμμ-εε")),'Αναλυτικά έξοδα'!$E:$E) -> 2,500.00 € | O18: =SUM(C18:N18) -> 30,000.00 €
A20: 8000 | B20: Πρόγραμμα νοσηλείας | C20: =SUMIF('Δωρεές & Χορηγίες'!$L:$L,"="&($A20&TEXT(C$4,"μμμ-εε")),'Δωρεές & Χορηγίες'!$D:$D)+SUMIF('Αναλυτικά έξοδα'!$J:$J,"="&($A20&TEXT(C$4,"μμμ-εε")),'Αναλυτικά έξοδα'!$E:$E) -> 0 | D20: =SUMIF('Δωρεές & Χορηγίες'!$L:$L,"="&($A20&TEXT(D$4,"μμμ-εε")),'Δωρεές & Χορηγίες'!$D:$D)+SUMIF('Αναλυτικά έξοδα'!$J:$J,"="&($A20&TEXT(D$4,"μμμ-εε")),'Αναλυτικά έξοδα'!$E:$E) -> 0 | E20: =SUMIF('Δωρεές & Χορηγίες'!$L:$L,"="&($A20&TEXT(E$4,"μμμ-εε")),'Δωρεές & Χορηγίες'!$D:$D)+SUMIF('Αναλυτικά έξοδα'!$J:$J,"="&($A20&TEXT(E$4,"μμμ-εε")),'Αναλυτικά έξοδα'!$E:$E) -> 0 | F20: =SUMIF('Δωρεές & Χορηγίες'!$L:$L,"="&($A20&TEXT(F$4,"μμμ-εε")),'Δωρεές & Χορηγίες'!$D:$D)+SUMIF('Αναλυτικά έξοδα'!$J:$J,"="&($A20&TEXT(F$4,"μμμ-εε")),'Αναλυτικά έξοδα'!$E:$E) -> 0 | G20: =SUMIF('Δωρεές & Χορηγίες'!$L:$L,"="&($A20&TEXT(G$4,"μμμ-εε")),'Δωρεές & Χορηγίες'!$D:$D)+SUMIF('Αναλυτικά έξοδα'!$J:$J,"="&($A20&TEXT(G$4,"μμμ-εε")),'Αναλυτικά έξοδα'!$E:$E) -> 0 | H20: =SUMIF('Δωρεές & Χορηγίες'!$L:$L,"="&($A20&TEXT(H$4,"μμμ-εε")),'Δωρεές & Χορηγίες'!$D:$D)+SUMIF('Αναλυτικά έξοδα'!$J:$J,"="&($A20&TEXT(H$4,"μμμ-εε")),'Αναλυτικά έξοδα'!$E:$E) -> 0 | I20: =SUMIF('Δωρεές & Χορηγίες'!$L:$L,"="&($A20&TEXT(I$4,"μμμ-εε")),'Δωρεές & Χορηγίες'!$D:$D)+SUMIF('Αναλυτικά έξοδα'!$J:$J,"="&($A20&TEXT(I$4,"μμμ-εε")),'Αναλυτικά έξοδα'!$E:$E) -> 0 | J20: =SUMIF('Δωρεές & Χορηγίες'!$L:$L,"="&($A20&TEXT(J$4,"μμμ-εε")),'Δωρεές & Χορηγίες'!$D:$D)+SUMIF('Αναλυτικά έξοδα'!$J:$J,"="&($A20&TEXT(J$4,"μμμ-εε")),'Αναλυτικά έξοδα'!$E:$E) -> 0 | K20: =SUMIF('Δωρεές & Χορηγίες'!$L:$L,"="&($A20&TEXT(K$4,"μμμ-εε")),'Δωρεές & Χορηγίες'!$D:$D)+SUMIF('Αναλυτικά έξοδα'!$J:$J,"="&($A20&TEXT(K$4,"μμμ-εε")),'Αναλυτικά έξοδα'!$E:$E) -> 0 | L20: =SUMIF('Δωρεές & Χορηγίες'!$L:$L,"="&($A20&TEXT(L$4,"μμμ-εε")),'Δωρεές & Χορηγίες'!$D:$D)+SUMIF('Αναλυτικά έξοδα'!$J:$J,"="&($A20&TEXT(L$4,"μμμ-εε")),'Αναλυτικά έξοδα'!$E:$E) -> 0 | M20: =SUMIF('Δωρεές & Χορηγίες'!$L:$L,"="&($A20&TEXT(M$4,"μμμ-εε")),'Δωρεές & Χορηγίες'!$D:$D)+SUMIF('Αναλυτικά έξοδα'!$J:$J,"="&($A20&TEXT(M$4,"μμμ-εε")),'Αναλυτικά έξοδα'!$E:$E) -> 0 | N20: =SUMIF('Δωρεές & Χορηγίες'!$L:$L,"="&($A20&TEXT(N$4,"μμμ-εε")),'Δωρεές & Χορηγίες'!$D:$D)+SUMIF('Αναλυτικά έξοδα'!$J:$J,"="&($A20&TEXT(N$4,"μμμ-εε")),'Αναλυτικά έξοδα'!$E:$E) -> 0 | O20: =SUM(C20:N20) -> 0
A22: 9000 | B22: Κόστος κατασκευής | C22: =SUMIF('Δωρεές & Χορηγίες'!$L:$L,"="&($A22&TEXT(C$4,"μμμ-εε")),'Δωρεές & Χορηγίες'!$D:$D)+SUMIF('Αναλυτικά έξοδα'!$J:$J,"="&($A22&TEXT(C$4,"μμμ-εε")),'Αναλυτικά έξοδα'!$E:$E) -> 0 | D22: =SUMIF('Δωρεές & Χορηγίες'!$L:$L,"="&($A22&TEXT(D$4,"μμμ-εε")),'Δωρεές & Χορηγίες'!$D:$D)+SUMIF('Αναλυτικά έξοδα'!$J:$J,"="&($A22&TEXT(D$4,"μμμ-εε")),'Αναλυτικά έξοδα'!$E:$E) -> 0 | E22: =SUMIF('Δωρεές & Χορηγίες'!$L:$L,"="&($A22&TEXT(E$4,"μμμ-εε")),'Δωρεές & Χορηγίες'!$D:$D)+SUMIF('Αναλυτικά έξοδα'!$J:$J,"="&($A22&TEXT(E$4,"μμμ-εε")),'Αναλυτικά έξοδα'!$E:$E) -> 0 | F22: =SUMIF('Δωρεές & Χορηγίες'!$L:$L,"="&($A22&TEXT(F$4,"μμμ-εε")),'Δωρεές & Χορηγίες'!$D:$D)+SUMIF('Αναλυτικά έξοδα'!$J:$J,"="&($A22&TEXT(F$4,"μμμ-εε")),'Αναλυτικά έξοδα'!$E:$E) -> 0 | G22: =SUMIF('Δωρεές & Χορηγίες'!$L:$L,"="&($A22&TEXT(G$4,"μμμ-εε")),'Δωρεές & Χορηγίες'!$D:$D)+SUMIF('Αναλυτικά έξοδα'!$J:$J,"="&($A22&TEXT(G$4,"μμμ-εε")),'Αναλυτικά έξοδα'!$E:$E) -> 0 | H22: =SUMIF('Δωρεές & Χορηγίες'!$L:$L,"="&($A22&TEXT(H$4,"μμμ-εε")),'Δωρεές & Χορηγίες'!$D:$D)+SUMIF('Αναλυτικά έξοδα'!$J:$J,"="&($A22&TEXT(H$4,"μμμ-εε")),'Αναλυτικά έξοδα'!$E:$E) -> 0 | I22: =SUMIF('Δωρεές & Χορηγίες'!$L:$L,"="&($A22&TEXT(I$4,"μμμ-εε")),'Δωρεές & Χορηγίες'!$D:$D)+SUMIF('Αναλυτικά έξοδα'!$J:$J,"="&($A22&TEXT(I$4,"μμμ-εε")),'Αναλυτικά έξοδα'!$E:$E) -> 0 | J22: =SUMIF('Δωρεές & Χορηγίες'!$L:$L,"="&($A22&TEXT(J$4,"μμμ-εε")),'Δωρεές & Χορηγίες'!$D:$D)+SUMIF('Αναλυτικά έξοδα'!$J:$J,"="&($A22&TEXT(J$4,"μμμ-εε")),'Αναλυτικά έξοδα'!$E:$E) -> 0 | K22: =SUMIF('Δωρεές & Χορηγίες'!$L:$L,"="&($A22&TEXT(K$4,"μμμ-εε")),'Δωρεές & Χορηγίες'!$D:$D)+SUMIF('Αναλυτικά έξοδα'!$J:$J,"="&($A22&TEXT(K$4,"μμμ-εε")),'Αναλυτικά έξοδα'!$E:$E) -> 0 | L22: =SUMIF('Δωρεές & Χορηγίες'!$L:$L,"="&($A22&TEXT(L$4,"μμμ-εε")),'Δωρεές & Χορηγίες'!$D:$D)+SUMIF('Αναλυτικά έξοδα'!$J:$J,"="&($A22&TEXT(L$4,"μμμ-εε")),'Αναλυτικά έξοδα'!$E:$E) -> 0 | M22: =SUMIF('Δωρεές & Χορηγίες'!$L:$L,"="&($A22&TEXT(M$4,"μμμ-εε")),'Δωρεές & Χορηγίες'!$D:$D)+SUMIF('Αναλυτικά έξοδα'!$J:$J,"="&($A22&TEXT(M$4,"μμμ-εε")),'Αναλυτικά έξοδα'!$E:$E) -> 0 | N22: =SUMIF('Δωρεές & Χορηγίες'!$L:$L,"="&($A22&TEXT(N$4,"μμμ-εε")),'Δωρεές & Χορηγίες'!$D:$D)+SUMIF('Αναλυτικά έξοδα'!$J:$J,"="&($A22&TEXT(N$4,"μμμ-εε")),'Αναλυτικά έξοδα'!$E:$E) -> 0 | O22: =SUM(C22:N22) -> 0
A24: 10000 | B24: Μάρκετινγκ | C24: =SUMIF('Δωρεές & Χορηγίες'!$L:$L,"="&($A24&TEXT(C$4,"μμμ-εε")),'Δωρεές & Χορηγίες'!$D:$D)+SUMIF('Αναλυτικά έξοδα'!$J:$J,"="&($A24&TEXT(C$4,"μμμ-εε")),'Αναλυτικά έξοδα'!$E:$E) -> 0 | D24: =SUMIF('Δωρεές & Χορηγίες'!$L:$L,"="&($A24&TEXT(D$4,"μμμ-εε")),'Δωρεές & Χορηγίες'!$D:$D)+SUMIF('Αναλυτικά έξοδα'!$J:$J,"="&($A24&TEXT(D$4,"μμμ-εε")),'Αναλυτικά έξοδα'!$E:$E) -> 0 | E24: =SUMIF('Δωρεές & Χορηγίες'!$L:$L,"="&($A24&TEXT(E$4,"μμμ-εε")),'Δωρεές & Χορηγίες'!$D:$D)+SUMIF('Αναλυτικά έξοδα'!$J:$J,"="&($A24&TEXT(E$4,"μμμ-εε")),'Αναλυτικά έξοδα'!$E:$E) -> 0 | F24: =SUMIF('Δωρεές & Χορηγίες'!$L:$L,"="&($A24&TEXT(F$4,"μμμ-εε")),'Δωρεές & Χορηγίες'!$D:$D)+SUMIF('Αναλυτικά έξοδα'!$J:$J,"="&($A24&TEXT(F$4,"μμμ-εε")),'Αναλυτικά έξοδα'!$E:$E) -> 0 | G24: =SUMIF('Δωρεές & Χορηγίες'!$L:$L,"="&($A24&TEXT(G$4,"μμμ-εε")),'Δωρεές & Χορηγίες'!$D:$D)+SUMIF('Αναλυτικά έξοδα'!$J:$J,"="&($A24&TEXT(G$4,"μμμ-εε")),'Αναλυτικά έξοδα'!$E:$E) -> 0 | H24: =SUMIF('Δωρεές & Χορηγίες'!$L:$L,"="&($A24&TEXT(H$4,"μμμ-εε")),'Δωρεές & Χορηγίες'!$D:$D)+SUMIF('Αναλυτικά έξοδα'!$J:$J,"="&($A24&TEXT(H$4,"μμμ-εε")),'Αναλυτικά έξοδα'!$E:$E) -> 0 | I24: =SUMIF('Δωρεές & Χορηγίες'!$L:$L,"="&($A24&TEXT(I$4,"μμμ-εε")),'Δωρεές & Χορηγίες'!$D:$D)+SUMIF('Αναλυτικά έξοδα'!$J:$J,"="&($A24&TEXT(I$4,"μμμ-εε")),'Αναλυτικά έξοδα'!$E:$E) -> 0 | J24: =SUMIF('Δωρεές & Χορηγίες'!$L:$L,"="&($A24&TEXT(J$4,"μμμ-εε")),'Δωρεές & Χορηγίες'!$D:$D)+SUMIF('Αναλυτικά έξοδα'!$J:$J,"="&($A24&TEXT(J$4,"μμμ-εε")),'Αναλυτικά έξοδα'!$E:$E) -> 0 | K24: =SUMIF('Δωρεές & Χορηγίες'!$L:$L,"="&($A24&TEXT(K$4,"μμμ-εε")),'Δωρεές & Χορηγίες'!$D:$D)+SUMIF('Αναλυτικά έξοδα'!$J:$J,"="&($A24&TEXT(K$4,"μμμ-εε")),'Αναλυτικά έξοδα'!$E:$E) -> 0 | L24: =SUMIF('Δωρεές & Χορηγίες'!$L:$L,"="&($A24&TEXT(L$4,"μμμ-εε")),'Δωρεές & Χορηγίες'!$D:$D)+SUMIF('Αναλυτικά έξοδα'!$J:$J,"="&($A24&TEXT(L$4,"μμμ-εε")),'Αναλυτικά έξοδα'!$E:$E) -> 0 | M24: =SUMIF('Δωρεές & Χορηγίες'!$L:$L,"="&($A24&TEXT(M$4,"μμμ-εε")),'Δωρεές & Χορηγίες'!$D:$D)+SUMIF('Αναλυτικά έξοδα'!$J:$J,"="&($A24&TEXT(M$4,"μμμ-εε")),'Αναλυτικά έξοδα'!$E:$E) -> 0 | N24: =SUMIF('Δωρεές & Χορηγίες'!$L:$L,"="&($A24&TEXT(N$4,"μμμ-εε")),'Δωρεές & Χορηγίες'!$D:$D)+SUMIF('Αναλυτικά έξοδα'!$J:$J,"="&($A24&TEXT(N$4,"μμμ-εε")),'Αναλυτικά έξοδα'!$E:$E) -> 0 | O24: =SUM(C24:N24) -> 0
A26: 11000 | B26: Δωρεές | C26: =SUMIF('Δωρεές & Χορηγίες'!$L:$L,"="&($A26&TEXT(C$4,"μμμ-εε")),'Δωρεές & Χορηγίες'!$D:$D)+SUMIF('Αναλυτικά έξοδα'!$J:$J,"="&($A26&TEXT(C$4,"μμμ-εε")),'Αναλυτικά έξοδα'!$E:$E) -> 2,500.00 € | D26: =SUMIF('Δωρεές & Χορηγίες'!$L:$L,"="&($A26&TEXT(D$4,"μμμ-εε")),'Δωρεές & Χορηγίες'!$D:$D)+SUMIF('Αναλυτικά έξοδα'!$J:$J,"="&($A26&TEXT(D$4,"μμμ-εε")),'Αναλυτικά έξοδα'!$E:$E) -> 2,500.00 € | E26: =SUMIF('Δωρεές & Χορηγίες'!$L:$L,"="&($A26&TEXT(E$4,"μμμ-εε")),'Δωρεές & Χορηγίες'!$D:$D)+SUMIF('Αναλυτικά έξοδα'!$J:$J,"="&($A26&TEXT(E$4,"μμμ-εε")),'Αναλυτικά έξοδα'!$E:$E) -> 2,500.00 € | F26: =SUMIF('Δωρεές & Χορηγίες'!$L:$L,"="&($A26&TEXT(F$4,"μμμ-εε")),'Δωρεές & Χορηγίες'!$D:$D)+SUMIF('Αναλυτικά έξοδα'!$J:$J,"="&($A26&TEXT(F$4,"μμμ-εε")),'Αναλυτικά έξοδα'!$E:$E) -> 2,500.00 € | G26: =SUMIF('Δωρεές & Χορηγίες'!$L:$L,"="&($A26&TEXT(G$4,"μμμ-εε")),'Δωρεές & Χορηγίες'!$D:$D)+SUMIF('Αναλυτικά έξοδα'!$J:$J,"="&($A26&TEXT(G$4,"μμμ-εε")),'Αναλυτικά έξοδα'!$E:$E) -> 2,500.00 € | H26: =SUMIF('Δωρεές & Χορηγίες'!$L:$L,"="&($A26&TEXT(H$4,"μμμ-εε")),'Δωρεές & Χορηγίες'!$D:$D)+SUMIF('Αναλυτικά έξοδα'!$J:$J,"="&($A26&TEXT(H$4,"μμμ-εε")),'Αναλυτικά έξοδα'!$E:$E) -> 2,500.00 € | I26: =SUMIF('Δωρεές & Χορηγίες'!$L:$L,"="&($A26&TEXT(I$4,"μμμ-εε")),'Δωρεές & Χορηγίες'!$D:$D)+SUMIF('Αναλυτικά έξοδα'!$J:$J,"="&($A26&TEXT(I$4,"μμμ-εε")),'Αναλυτικά έξοδα'!$E:$E) -> 2,500.00 € | J26: =SUMIF('Δωρεές & Χορηγίες'!$L:$L,"="&($A26&TEXT(J$4,"μμμ-εε")),'Δωρεές & Χορηγίες'!$D:$D)+SUMIF('Αναλυτικά έξοδα'!$J:$J,"="&($A26&TEXT(J$4,"μμμ-εε")),'Αναλυτικά έξοδα'!$E:$E) -> 2,500.00 € | K26: =SUMIF('Δωρεές & Χορηγίες'!$L:$L,"="&($A26&TEXT(K$4,"μμμ-εε")),'Δωρεές & Χορηγίες'!$D:$D)+SUMIF('Αναλυτικά έξοδα'!$J:$J,"="&($A26&TEXT(K$4,"μμμ-εε")),'Αναλυτικά έξοδα'!$E:$E) -> 2,500.00 € | L26: =SUMIF('Δωρεές & Χορηγίες'!$L:$L,"="&($A26&TEXT(L$4,"μμμ-εε")),'Δωρεές & Χορηγίες'!$D:$D)+SUMIF('Αναλυτικά έξοδα'!$J:$J,"="&($A26&TEXT(L$4,"μμμ-εε")),'Αναλυτικά έξοδα'!$E:$E) -> 2,500.00 € | M26: =SUMIF('Δωρεές & Χορηγίες'!$L:$L,"="&($A26&TEXT(M$4,"μμμ-εε")),'Δωρεές & Χορηγίες'!$D:$D)+SUMIF('Αναλυτικά έξοδα'!$J:$J,"="&($A26&TEXT(M$4,"μμμ-εε")),'Αναλυτικά έξοδα'!$E:$E) -> 2,500.00 € | N26: =SUMIF('Δωρεές & Χορηγίες'!$L:$L,"="&($A26&TEXT(N$4,"μμμ-εε")),'Δωρεές & Χορηγίες'!$D:$D)+SUMIF('Αναλυτικά έξοδα'!$J:$J,"="&($A26&TEXT(N$4,"μμμ-εε")),'Αναλυτικά έξοδα'!$E:$E) -> 2,500.00 € | O26: =SUM(C26:N26) -> 30,000.00 €
A28: 12000 | B28: Χορηγίες | C28: =SUMIF('Δωρεές & Χορηγίες'!$L:$L,"="&($A28&TEXT(C$4,"μμμ-εε")),'Δωρεές & Χορηγίες'!$D:$D)+SUMIF('Αναλυτικά έξοδα'!$J:$J,"="&($A28&TEXT(C$4,"μμμ-εε")),'Αναλυτικά έξοδα'!$E:$E) -> 1,000.00 € | D28: =SUMIF('Δωρεές & Χορηγίες'!$L:$L,"="&($A28&TEXT(D$4,"μμμ-εε")),'Δωρεές & Χορηγίες'!$D:$D)+SUMIF('Αναλυτικά έξοδα'!$J:$J,"="&($A28&TEXT(D$4,"μμμ-εε")),'Αναλυτικά έξοδα'!$E:$E) -> 1,000.00 € | E28: =SUMIF('Δωρεές & Χορηγίες'!$L:$L,"="&($A28&TEXT(E$4,"μμμ-εε")),'Δωρεές & Χορηγίες'!$D:$D)+SUMIF('Αναλυτικά έξοδα'!$J:$J,"="&($A28&TEXT(E$4,"μμμ-εε")),'Αναλυτικά έξοδα'!$E:$E) -> 1,000.00 € | F28: =SUMIF('Δωρεές & Χορηγίες'!$L:$L,"="&($A28&TEXT(F$4,"μμμ-εε")),'Δωρεές & Χορηγίες'!$D:$D)+SUMIF('Αναλυτικά έξοδα'!$J:$J,"="&($A28&TEXT(F$4,"μμμ-εε")),'Αναλυτικά έξοδα'!$E:$E) -> 1,000.00 € | G28: =SUMIF('Δωρεές & Χορηγίες'!$L:$L,"="&($A28&TEXT(G$4,"μμμ-εε")),'Δωρεές & Χορηγίες'!$D:$D)+SUMIF('Αναλυτικά έξοδα'!$J:$J,"="&($A28&TEXT(G$4,"μμμ-εε")),'Αναλυτικά έξοδα'!$E:$E) -> 1,000.00 € | H28: =SUMIF('Δωρεές & Χορηγίες'!$L:$L,"="&($A28&TEXT(H$4,"μμμ-εε")),'Δωρεές & Χορηγίες'!$D:$D)+SUMIF('Αναλυτικά έξοδα'!$J:$J,"="&($A28&TEXT(H$4,"μμμ-εε")),'Αναλυτικά έξοδα'!$E:$E) -> 1,000.00 € | I28: =SUMIF('Δωρεές & Χορηγίες'!$L:$L,"="&($A28&TEXT(I$4,"μμμ-εε")),'Δωρεές & Χορηγίες'!$D:$D)+SUMIF('Αναλυτικά έξοδα'!$J:$J,"="&($A28&TEXT(I$4,"μμμ-εε")),'Αναλυτικά έξοδα'!$E:$E) -> 1,000.00 € | J28: =SUMIF('Δωρεές & Χορηγίες'!$L:$L,"="&($A28&TEXT(J$4,"μμμ-εε")),'Δωρεές & Χορηγίες'!$D:$D)+SUMIF('Αναλυτικά έξοδα'!$J:$J,"="&($A28&TEXT(J$4,"μμμ-εε")),'Αναλυτικά έξοδα'!$E:$E) -> 1,000.00 € | K28: =SUMIF('Δωρεές & Χορηγίες'!$L:$L,"="&($A28&TEXT(K$4,"μμμ-εε")),'Δωρεές & Χορηγίες'!$D:$D)+SUMIF('Αναλυτικά έξοδα'!$J:$J,"="&($A28&TEXT(K$4,"μμμ-εε")),'Αναλυτικά έξοδα'!$E:$E) -> 1,000.00 € | L28: =SUMIF('Δωρεές & Χορηγίες'!$L:$L,"="&($A28&TEXT(L$4,"μμμ-εε")),'Δωρεές & Χορηγίες'!$D:$D)+SUMIF('Αναλυτικά έξοδα'!$J:$J,"="&($A28&TEXT(L$4,"μμμ-εε")),'Αναλυτικά έξοδα'!$E:$E) -> 1,000.00 € | M28: =SUMIF('Δωρεές & Χορηγίες'!$L:$L,"="&($A28&TEXT(M$4,"μμμ-εε")),'Δωρεές & Χορηγίες'!$D:$D)+SUMIF('Αναλυτικά έξοδα'!$J:$J,"="&($A28&TEXT(M$4,"μμμ-εε")),'Αναλυτικά έξοδα'!$E:$E) -> 1,000.00 € | N28: =SUMIF('Δωρεές & Χορηγίες'!$L:$L,"="&($A28&TEXT(N$4,"μμμ-εε")),'Δωρεές & Χορηγίες'!$D:$D)+SUMIF('Αναλυτικά έξοδα'!$J:$J,"="&($A28&TEXT(N$4,"μμμ-εε")),'Αναλυτικά έξοδα'!$E:$E) -> 1,000.00 € | O28: =SUM(C28:N28) -> 12,000.00 €
B30: Σύνολο | C30: =SUM(C6:C28) -> 6,750.75 € | D30: 6,750.75 € | E30: 6,750.75 € | F30: 6,750.75 € | G30: 6,750.75 € | H30: 6,750.75 € | I30: 6,750.75 € | J30: 6,750.75 € | K30: 6,750.75 € | L30: 6,750.75 € | M30: 6,750.75 € | N30: 6,750.75 € | O30: 81,009.00 €

Sheet Αναλυτικά έξοδα
A1: Κώδικας Γ/Κ | B1: Ημερομηνία τιμολογίου | C1: Τιμολόγιο # | D1: Αίτηση από | E1: Έλεγχος ποσού | F1: Δικαιούχος πληρωμής | G1: Έλεγχος χρήσης | H1: Μέθοδος κατανομής | I1: Ημερομηνία αρχείου | J1: Δημιουργημένο πεδίο κλειδιού
A2: 1000 | B2: 2005-01-01 | C2: 100 | D2: Andy Teal | E2: 750.75 € | F2: Σύστημα ενοποιημένων μηνυμάτων | G2: Σύστημα αλληλογραφίας | H2: Αλληλογραφία | I2: 2005-01-04 | J2: =A2&TEXT(B2,"μμμ-εε") -> 1000μμμ-εε
A3: 7000 | B3: 2005-01-15 | C3: 101 | D3: Robert Walters | E3: 2,500.00 € | F3: A. Datum Corporation | G3: 2 επιτραπέζιοι υπολογιστές | H3: Πίστωση | I3: 2005-01-20 | J3: 7000μμμ-εε
J4: μμμ-εε
J5: μμμ-εε
J6: μμμ-εε
J7: μμμ-εε
J8: μμμ-εε
J9: μμμ-εε
J10: μμμ-εε
J11: μμμ-εε
J12: μμμ-εε
J13: μμμ-εε
J14: μμμ-εε
J15: μμμ-εε
J16: μμμ-εε
J17: μμμ-εε
J18: μμμ-εε
J19: μμμ-εε
J20: μμμ-εε
J21: μμμ-εε
J22: μμμ-εε
J23: μμμ-εε
J24: μμμ-εε
J25: μμμ-εε
J26: μμμ-εε
J27: μμμ-εε
J28: μμμ-εε
J29: μμμ-εε
J30: μμμ-εε
J31: μμμ-εε
J32: μμμ-εε
J33: μμμ-εε
J34: =A34&TEXT(B34,"μμμ-εε") -> μμμ-εε
J35: μμμ-εε
J36: μμμ-εε
J37: μμμ-εε
J38: μμμ-εε
J39: μμμ-εε
J40: μμμ-εε
J41: μμμ-εε
J42: μμμ-εε
J43: μμμ-εε
J44: μμμ-εε
J45: μμμ-εε
J46: μμμ-εε
J47: μμμ-εε
J48: μμμ-εε
J49: μμμ-εε
J50: μμμ-εε
J51: μμμ-εε
J52: μμμ-εε
J53: μμμ-εε
J54: μμμ-εε
J55: μμμ-εε
J56: μμμ-εε
J57: μμμ-εε
J58: μμμ-εε
J59: μμμ-εε
J60: μμμ-εε
J61: μμμ-εε
J62: μμμ-εε
J63: μμμ-εε
J64: μμμ-εε
J65: μμμ-εε
J66: =A66&TEXT(B66,"μμμ-εε") -> μμμ-εε
J67: μμμ-εε
J68: μμμ-εε
J69: μμμ-εε
J70: μμμ-εε
J71: μμμ-εε
J72: μμμ-εε
J73: μμμ-εε
J74: μμμ-εε
J75: μμμ-εε
J76: μμμ-εε
J77: μμμ-εε
J78: μμμ-εε
J79: μμμ-εε
J80: μμμ-εε
J81: μμμ-εε
J82: μμμ-εε
J83: μμμ-εε
J84: μμμ-εε
J85: μμμ-εε
J86: μμμ-εε
J87: μμμ-εε
J88: μμμ-εε
J89: μμμ-εε
J90: μμμ-εε
J91: μμμ-εε
J92: μμμ-εε
J93: μμμ-εε
J94: μμμ-εε
J95: μμμ-εε
J96: μμμ-εε
J97: μμμ-εε
J98: =A98&TEXT(B98,"μμμ-εε") -> μμμ-εε
J99: μμμ-εε
J100: μμμ-εε
J101: μμμ-εε
J102: μμμ-εε
J103: μμμ-εε

Sheet Δωρεές & Χορηγίες
A1: Κώδικας Γ/Κ | B1: Έναρξη αίτησης ελέγχου ημερομηνίας | C1: Αίτηση από | D1: Έλεγχος ποσού | E1: Εισφορά προηγούμενου έτους | F1: Δικαιούχος πληρωμής | G1: Χρησιμοποιήθηκε για | H1: Υπεγράφη από | I1: Κατηγορία | J1: Μέθοδος κατανομής | K1: Ημερομηνία αρχείου | L1: Δημιουργημένο πεδίο κλειδιού
A2: 12000 | B2: 2005-01-20 | C2: Susan W. Eaton | D2: 1,000.00 € | E2: 0 | F2: Σχολή καλών τεχνών | G2: Υποτροφίες | H2: Kim Ralls | I2: Τέχνες | J2: Έλεγχος | K2: 2005-01-30 | L2: =A2&TEXT(B2,"μμμ-εε") -> 12000μμμ-εε
A3: 11000 | B3: 2005-02-15 | C3: Susan W. Eaton | D3: 2,500.00 € | E3: 0 | F3: Wingtip Toys | G3: Κοινότητα | H3: Kathie Flood | I3: Κοινότητα | J3: Έλεγχος | K3: 2005-03-01 | L3: 11000μμμ-εε
L4: μμμ-εε
L5: μμμ-εε
L6: μμμ-εε
L7: μμμ-εε
L8: μμμ-εε
L9: μμμ-εε
L10: μμμ-εε
L11: μμμ-εε
L12: μμμ-εε
L13: μμμ-εε
L14: μμμ-εε
L15: μμμ-εε
L16: μμμ-εε
L17: μμμ-εε
L18: μμμ-εε
L19: μμμ-εε
L20: μμμ-εε
L21: μμμ-εε
L22: μμμ-εε
L23: μμμ-εε
L24: μμμ-εε
L25: μμμ-εε
L26: μμμ-εε
L27: μμμ-εε
L28: μμμ-εε
L29: μμμ-εε
L30: μμμ-εε
L31: μμμ-εε
L32: μμμ-εε
L33: μμμ-εε
L34: =A34&TEXT(B34,"μμμ-εε") -> μμμ-εε
L35: μμμ-εε
L36: μμμ-εε
L37: μμμ-εε
L38: μμμ-εε
L39: μμμ-εε
L40: μμμ-εε
L41: μμμ-εε
L42: μμμ-εε
L43: μμμ-εε
L44: μμμ-εε
L45: μμμ-εε
L46: μμμ-εε
L47: μμμ-εε
L48: μμμ-εε
L49: μμμ-εε
L50: μμμ-εε
L51: μμμ-εε
L52: μμμ-εε
L53: μμμ-εε
L54: μμμ-εε
L55: μμμ-εε
L56: μμμ-εε
L57: μμμ-εε
L58: μμμ-εε
L59: μμμ-εε
L60: μμμ-εε
L61: μμμ-εε
L62: μμμ-εε
L63: μμμ-εε
L64: μμμ-εε
L65: μμμ-εε
L66: =A66&TEXT(B66,"μμμ-εε") -> μμμ-εε
L67: μμμ-εε
L68: μμμ-εε
L69: μμμ-εε
L70: μμμ-εε
L71: μμμ-εε
L72: μμμ-εε
L73: μμμ-εε
L74: μμμ-εε
L75: μμμ-εε
L76: μμμ-εε
L77: μμμ-εε
L78: μμμ-εε
L79: μμμ-εε
L80: μμμ-εε
L81: μμμ-εε
L82: μμμ-εε
L83: μμμ-εε
L84: μμμ-εε
L85: μμμ-εε
L86: μμμ-εε
L87: μμμ-εε
L88: μμμ-εε
L89: μμμ-εε
L90: μμμ-εε
L91: μμμ-εε
L92: μμμ-εε
L93: μμμ-εε
L94: μμμ-εε
L95: μμμ-εε
L96: μμμ-εε
L97: μμμ-εε
L98: =A98&TEXT(B98,"μμμ-εε") -> μμμ-εε
L99: μμμ-εε
L100: μμμ-εε
L101: μμμ-εε
L102: μμμ-εε
L103: μμμ-εε
L104: μμμ-εε
L105: μμμ-εε
L106: μμμ-εε
L107: μμμ-εε
L108: μμμ-εε
L109: μμμ-εε
